fUST/lending_fUST_20251230
["ID","MTS","AMOUNT","RATE_DAILY","PERIOD"]
[400084885,1767077446171,-468.90629687,0.00021917,2]
[400084886,1767077446181,-371.51920857,0.00021917,2]
[400084887,1767077446191,-253.69817259,0.00021917,2]
[400084888,1767077446200,-174.75719953,0.00021917,2]
[400084889,1767077446209,-398.22585687,0.00021917,2]
[400084890,1767077446220,-308.41590209,0.00021917,2]
[400084891,1767077446230,-402.34697744,0.00021917,2]
[400084892,1767077446240,-500.0,0.00021917,2]
[400084893,1767077446249,-543.83018981,0.00021917,2]
[400084894,1767077446260,-500.0,0.00021917,2]
[400084895,1767077446269,-500.0,0.00021917,2]
[400084896,1767077446278,-500.0,0.00021917,2]
[400084897,1767077446287,-500.0,0.00021917,2]
[400084898,1767077446297,-395.77091566,0.00021917,2]
[400084899,1767077446306,-400.33130937,0.00021917,2]
[400084900,1767077446316,-500.0,0.00021917,2]
[400084901,1767077446326,-474.75266645,0.00021917,2]
[400084902,1767077446335,-322.16356758,0.00021917,2]
[400084903,1767077446344,-275.59920934,0.00021917,2]
[400084904,1767077446354,-488.66177969,0.00021917,2]
[400084905,1767077446363,-500.0,0.00021917,2]
[400084906,1767077446373,-221.03558067,0.00021917,2]
[400084907,1767077446382,-383.57132978,0.00021917,2]
[400084908,1767077446392,-500.0,0.00021917,2]
[400084909,1767077446401,-264.9392192,0.00021917,2]
[400084910,1767077446410,-453.266142,0.00021917,2]
[400084911,1767077446419,-413.44984279,0.00021917,2]
[400084912,1767077446429,-500.0,0.00021917,2]
[400084913,1767077446438,-443.55124021,0.00021917,2]
[400084914,1767077446447,-173.90124415,0.00021917,2]
[400084915,1767077446457,-214.95652762,0.00021917,2]
[400084916,1767077446467,-500.0,0.00021917,2]
[400084917,1767077446476,-295.2511899,0.00021917,2]
[400084918,1767077446486,-603.73735318,0.00021917,2]
[400084919,1767077446496,-249.80248237,0.00021917,2]
[400084920,1767077446505,-454.07829285,0.00021917,2]
[400084921,1767077446515,-501.12093149,0.00021917,2]
[400084922,1767077446525,-317.5572775,0.00021917,2]
[400084923,1767077446534,-476.90769747,0.00021917,2]
[400084924,1767077446543,-478.21623539,0.00021917,2]
[400084925,1767077446552,-478.56799403,0.00021917,2]
[400084926,1767077446562,-494.20939552,0.00021917,2]
[400084927,1767077446571,-266.21522382,0.00021917,2]
[400084928,1767077446581,-500.0,0.00021917,2]
[400084929,1767077446590,-464.76334376,0.00021917,2]
[400084930,1767077446600,-497.98100807,0.00021917,2]
[400084931,1767077446609,-500.0,0.00021917,2]
[400084932,1767077446619,-500.0,0.00021917,2]
[400084933,1767077446628,-479.73408141,0.00021917,2]
[400084934,1767077446637,-300.32782807,0.00021917,2]
[400084935,1767077446647,-253.69247233,0.00021917,2]
[400084936,1767077446657,-363.52764202,0.00021917,2]
[400084937,1767077446667,-354.67878225,0.00021917,2]
[400084938,1767077446676,-216.60341199,0.00021917,2]
[400084939,1767077446686,-492.63956766,0.00021917,2]
[400084940,1767077446695,-161.65920763,0.00021917,2]
[400084941,1767077446704,-416.61031872,0.00021917,2]
[400084942,1767077446714,-188.7152254,0.00021917,2]
[400084943,1767077446724,-489.54562049,0.00021917,2]
[400084944,1767077446734,-446.84088329,0.00021917,2]
[400084945,1767077446744,-610.85708768,0.00021917,2]
[400084946,1767077446754,-544.01459209,0.00021917,2]
[400084947,1767077446763,-288.4165173,0.00021917,2]
[400084948,1767077446772,-500.0,0.00021917,2]
[400084949,1767077446782,-322.31792125,0.00021917,2]
[400084950,1767077446791,-464.72692172,0.00021917,2]
[400084951,1767077446800,-500.0,0.00021917,2]
[400084952,1767077446810,-1399.86,0.00021917,2]
[400084953,1767077446819,-345.01026882,0.00021917,2]
[400084954,1767077446829,-226.98660314,0.00021917,2]
[400084955,1767077446838,-349.03607023,0.00021917,2]
[400084956,1767077446847,-500.0,0.00021917,2]
[400084957,1767077446857,-408.64927459,0.00021917,2]
[400084958,1767077446867,-500.79380713,0.00021917,2]
[400084959,1767077446877,-500.0,0.00021917,2]
[400084960,1767077446886,-234.9790113,0.00021917,2]
[400084961,1767077446895,-500.0,0.00021917,2]
[400084962,1767077446904,-256.42020615,0.00021917,2]
[400084963,1767077446913,-500.0,0.00021917,2]
[400084964,1767077446922,-226.51399345,0.00021917,2]
[400084965,1767077446932,-335.91898352,0.00021917,2]
[400084966,1767077446941,-361.11966938,0.00021917,2]
[400084967,1767077446950,-484.32908546,0.00021917,2]
[400084968,1767077446959,-332.84203168,0.00021917,2]
[400084969,1767077446971,-373.31877062,0.00021917,2]
[400084970,1767077446980,-222.40611764,0.00021917,2]
[400084971,1767077446990,-150.34,0.00022,2]
[400084972,1767077447000,-567.81,0.00022,7]
[400084973,1767077447010,-8965.3,0.00022,2]
[400084974,1767077447018,-1660.0,0.00022049,2]
[400084975,1767077447027,-893.36396586,0.00022191,2]
[400084976,1767077447036,-500.0,0.00022191,2]
[400084977,1767077447048,-500.0,0.00022191,2]
[400084978,1767077447058,-500.0,0.00022191,2]
[400084979,1767077447067,-500.0,0.00022191,2]
[400084980,1767077447076,-500.0,0.00022191,2]
[400084981,1767077447085,-1000.0,0.00022191,2]
[400084982,1767077447094,-500.0,0.00022191,2]
[400084983,1767077447103,-500.0,0.00022191,2]
[400084984,1767077447113,-169.60907689,0.00022191,2]
[400084985,1767077447122,-1406.3,0.00022191,2]
[400084986,1767077447131,-500.0,0.00022191,2]
[400084987,1767077447140,-500.0,0.00022191,2]
[400084988,1767077447149,-500.0,0.00022191,2]
[400084989,1767077447242,-500.0,0.00022191,2]
[400084990,1767077447252,-500.0,0.00022191,2]
[400084991,1767077447262,-500.0,0.00022191,2]
[400084992,1767077447272,-223.69019589,0.00022191,2]
[400084993,1767077447281,-500.0,0.00022191,2]
[400084994,1767077447291,-500.0,0.00022191,2]
[400084995,1767077447300,-425.3251123,0.00022191,2]
[400084996,1767077447310,-500.0,0.00022191,2]
[400084997,1767077447319,-232.92010454,0.00022191,2]
[400084998,1767077447330,-500.0,0.00022191,2]
[400084999,1767077447339,-501.10644483,0.00022191,2]
[400085000,1767077447348,-1399.86,0.00022191,2]
[400085001,1767077447358,-500.0,0.00022191,2]
[400085002,1767077447367,-500.0,0.00022191,2]
[400085003,1767077447376,-534.62451166,0.00022191,2]
[400085004,1767077447385,-229.70253267,0.00022191,2]
[400085005,1767077447395,-350.6822047,0.00022322,9]
[400085006,1767077447404,-893.36396586,0.00022465,2]
[400085007,1767077447414,-500.0,0.00022465,2]
[400085008,1767077447423,-500.0,0.00022465,2]
[400085009,1767077447432,-500.0,0.00022465,2]
[400085010,1767077447441,-500.0,0.00022465,2]
[400085011,1767077447452,-500.0,0.00022465,2]
[400085012,1767077447462,-1000.0,0.00022465,2]
[400085013,1767077447471,-500.0,0.00022465,2]
[400085014,1767077447480,-500.0,0.00022465,2]
[400085015,1767077447489,-1406.3,0.00022465,2]
[400085016,1767077447498,-500.0,0.00022465,2]
[400085017,1767077447507,-500.0,0.00022465,2]
[400085018,1767077447517,-500.0,0.00022465,2]
[400085019,1767077447526,-500.0,0.00022465,2]
[400085020,1767077447535,-500.0,0.00022465,2]
[400085021,1767077447545,-500.0,0.00022465,2]
[400085022,1767077447555,-500.0,0.00022465,2]
[400085023,1767077447564,-500.0,0.00022465,2]
[400085024,1767077447574,-598.56632729,0.00022465,2]
[400085025,1767077447584,-500.0,0.00022465,2]
[400085026,1767077447594,-1399.86,0.00022465,2]
[400085027,1767077447604,-498.64088611,0.00022465,2]
[400085028,1767077447613,-500.0,0.00022465,2]
[400085029,1767077447623,-152.70127807,0.00022466,2]
[400085030,1767077447632,-458.82056238,0.00022562,2]
[400085031,1767077447642,-1760.0,0.00022597,2]
[400085032,1767077447652,-161.19,0.000226,7]
[400085033,1767077447662,-167.63,0.000226,7]
[400085034,1767077447672,-404.0,0.00022644,2]
[400085035,1767077447682,-151.0,0.000227,10]
[400085036,1767077447691,-1000.0,0.00022704,10]
[400085037,1767077447701,-791.0,0.00022704,10]
[400085038,1767077447711,-893.36396586,0.00022739,2]
[400085039,1767077447721,-500.0,0.00022739,2]
[400085040,1767077447731,-500.0,0.00022739,2]
[400085041,1767077447740,-500.0,0.00022739,2]
[400085042,1767077447750,-500.0,0.00022739,2]
[400085043,1767077447760,-500.0,0.00022739,2]
[400085044,1767077447769,-569.34807645,0.00022739,2]
[400085045,1767077447779,-500.0,0.00022739,2]
[400085046,1767077447788,-500.0,0.00022739,2]
[400085047,1767077447798,-1406.3,0.00022739,2]
[400085048,1767077447807,-505.79587884,0.00022739,2]
[400085049,1767077447817,-504.4,0.00022739,2]
[400085050,1767077447826,-500.0,0.00022739,2]
[400085051,1767077447836,-500.0,0.00022739,2]
[400085052,1767077447846,-500.0,0.00022739,2]
[400085053,1767077447856,-500.0,0.00022739,2]
[400085054,1767077447866,-500.0,0.00022739,2]
[400085055,1767077447876,-500.0,0.00022739,2]
[400085056,1767077447886,-500.0,0.00022739,2]
[400085057,1767077447896,-1399.86,0.00022739,2]
[400085058,1767077447906,-592.77633965,0.00022739,2]
[400085059,1767077447916,-1512.97,0.000229,14]
[400085060,1767077447925,-893.36396586,0.00023013,2]
[400085061,1767077447935,-500.0,0.00023013,2]
[400085062,1767077447945,-500.0,0.00023013,2]
[400085063,1767077447954,-500.0,0.00023013,2]
[400085064,1767077447963,-500.0,0.00023013,2]
[400085065,1767077447977,-500.0,0.00023013,2]
[400085066,1767077447987,-500.0,0.00023013,2]
[400085067,1767077447996,-500.0,0.00023013,2]
[400085068,1767077448005,-1406.3,0.00023013,2]
[400085069,1767077448016,-500.0,0.00023013,2]
[400085070,1767077448026,-500.0,0.00023013,2]
[400085071,1767077448037,-1399.86,0.00023013,2]
[400085072,1767077448048,-1860.0,0.00023144,2]
[400085073,1767077448058,-398.79767436,0.00023287,2]
[400085074,1767077448068,-500.0,0.00023287,2]
[400085075,1767077448078,-588.47770235,0.00023287,2]
[400085076,1767077448087,-500.0,0.00023287,2]
[400085077,1767077448097,-500.0,0.00023287,2]
[400085078,1767077448107,-500.0,0.00023287,2]
[400085079,1767077448117,-500.0,0.00023287,2]
[400085080,1767077448126,-500.0,0.00023287,2]
[400085081,1767077448136,-1406.3,0.00023287,2]
[400085082,1767077448145,-500.0,0.00023287,2]
[400085083,1767077448155,-223.2,0.00023287,2]
[400085084,1767077448165,-1399.86,0.00023287,2]
[400085085,1767077448174,-700.0,0.00023383,2]
[400085086,1767077448184,-700.0,0.00023395,2]
[400085087,1767077448193,-567.81,0.000234,7]
[400085088,1767077448203,-8965.3,0.000234,2]
[400085089,1767077448212,-350.6822047,0.00023445,11]
[400085090,1767077448222,-500.0,0.00023527,2]
[400085091,1767077448231,-500.0,0.00023561,2]
[400085092,1767077448240,-500.0,0.00023561,2]
[400085093,1767077448250,-500.0,0.00023561,2]
[400085094,1767077448259,-500.0,0.00023561,2]
[400085095,1767077448269,-500.0,0.00023561,2]
[400085096,1767077448279,-500.0,0.00023561,2]
[400085097,1767077448288,-1406.3,0.00023561,2]
[400085098,1767077448297,-513.16,0.00023561,2]
[400085099,1767077448307,-1399.86,0.00023561,2]
[400085100,1767077448316,-281.56166012,0.00023644,10]
[400085101,1767077448326,-162.87917481,0.00023668,2]
[400085102,1767077448335,-1960.0,0.00023692,2]
[400085103,1767077448345,-151.0,0.000237,8]
[400085104,1767077448355,-200.0,0.00023835,2]
[400085105,1767077448364,-200.0,0.00023835,2]
[400085106,1767077448374,-200.0,0.00023835,2]
[400085107,1767077448384,-200.0,0.00023835,2]
[400085108,1767077448394,-200.0,0.00023835,2]
[400085109,1767077448403,-200.0,0.00023835,2]
[400085110,1767077448414,-200.0,0.00023835,2]
[400085111,1767077448423,-200.0,0.00023835,2]
[400085112,1767077448433,-500.0,0.00023835,2]
[400085113,1767077448443,-500.0,0.00023835,2]
[400085114,1767077448452,-500.0,0.00023835,2]
[400085115,1767077448462,-500.0,0.00023835,2]
[400085116,1767077448472,-500.0,0.00023835,2]
[400085117,1767077448481,-1406.3,0.00023835,2]
[400085118,1767077448491,-1399.86,0.00023835,2]
[400085119,1767077448501,-700.0,0.00023912,2]
[400085120,1767077448510,-514.35380261,0.00023933,2]
[400085121,1767077448519,-195.95,0.00023994,30]
[400085122,1767077448528,-200.0,0.00024109,2]
[400085123,1767077448538,-500.0,0.00024109,2]
[400085124,1767077448547,-500.0,0.00024109,2]
[400085125,1767077448557,-500.0,0.00024109,2]
[400085126,1767077448567,-500.0,0.00024109,2]
[400085127,1767077448576,-500.0,0.00024109,2]
[400085128,1767077448585,-1406.3,0.00024109,2]
[400085130,1767077448595,-1399.86,0.00024109,2]
[400085132,1767077448605,-404.0,0.00024149,2]
[400085133,1767077448615,-150.34,0.000242,2]
[400085134,1767077448624,-2060.0,0.0002424,2]
[400085135,1767077448634,-700.0,0.00024379,2]
[400085136,1767077448644,-200.0,0.00024383,2]
[400085137,1767077448653,-500.0,0.00024383,2]
[400085138,1767077448664,-500.0,0.00024383,2]
[400085139,1767077448673,-500.0,0.00024383,2]
[400085140,1767077448683,-500.0,0.00024383,2]
[400085141,1767077448692,-500.0,0.00024383,2]
[400085142,1767077448703,-1406.3,0.00024383,2]
[400085143,1767077448712,-1399.86,0.00024383,2]
[400085144,1767077448722,-3685.02353366,0.0002451,2]
[400085145,1767077448732,-502.28777355,0.00024562,2]
[400085146,1767077448741,-350.6822047,0.00024567,12]
[400085147,1767077448751,-200.0,0.00024657,2]
[400085148,1767077448760,-500.0,0.00024657,2]
[400085149,1767077448770,-500.0,0.00024657,2]
[400085150,1767077448780,-500.0,0.00024657,2]
[400085151,1767077448790,-531.9,0.00024657,2]
[400085152,1767077448799,-500.0,0.00024657,2]
[400085153,1767077448809,-1406.3,0.00024657,2]
[400085154,1767077448818,-1399.86,0.00024657,2]
[400085155,1767077448828,-11167.34693313,0.000247,3]
[400085156,1767077448838,-2160.0,0.00024788,2]
[400085157,1767077448847,-16344.7214416,0.000248,2]
[400085158,1767077448857,-500.0,0.00024831,2]
[400085159,1767077448867,-567.81,0.000249,7]
[400085160,1767077448877,-8965.3,0.000249,2]
[400085161,1767077448886,-558645.613815,0.000249,2]
[400085162,1767077448896,-200.0,0.00024931,2]
[400085163,1767077448905,-500.0,0.00024931,2]
[400085164,1767077448915,-188.62587961,0.00024931,2]
[400085165,1767077448924,-500.0,0.00024931,2]
[400085166,1767077448934,-500.0,0.00024931,2]
[400085167,1767077448943,-1406.3,0.00024931,2]
[400085168,1767077448952,-1399.86,0.00024931,2]
[400085169,1767077448962,-1000.0,0.00024975,10]
[400085170,1767077448974,-1000.0,0.00024975,10]
[400085171,1767077448983,-700.0,0.00025082,7]
[400085172,1767077448993,-391.9,0.00025137,30]
[400085173,1767077449002,-1512.97,0.000252,14]
[400085174,1767077449013,-200.0,0.00025205,2]
[400085175,1767077449022,-500.0,0.00025205,2]
[400085176,1767077449033,-500.0,0.00025205,2]
[400085177,1767077449042,-500.0,0.00025205,2]
[400085178,1767077449054,-1406.3,0.00025205,2]
[400085179,1767077449063,-1399.86,0.00025205,2]
[400085180,1767077449073,-2260.0,0.00025336,2]
[400085181,1767077449082,-500.0,0.00025406,7]
[400085182,1767077449092,-700.0,0.00025457,7]
[400085183,1767077449102,-151.0,0.00025467,2]
[400085184,1767077449111,-250.0,0.00025467,2]
[400085185,1767077449120,-500.0,0.00025467,2]
[400085186,1767077449129,-151.0,0.00025467,2]
[400085187,1767077449138,-264.27926234,0.00025467,2]
[400085188,1767077449147,-500.0,0.00025467,2]
[400085189,1767077449156,-151.0,0.00025467,2]
[400085190,1767077449165,-500.0,0.00025467,2]
[400085191,1767077449174,-151.0,0.00025467,2]
[400085192,1767077449183,-500.0,0.00025467,2]
[400085193,1767077449193,-151.0,0.00025467,2]
[400085194,1767077449202,-2398.4119403,0.00025467,2]
[400085195,1767077449211,-152.94870132,0.00025467,2]
[400085196,1767077449221,-500.0,0.00025467,2]
[400085197,1767077449231,-151.0,0.00025467,2]
[400085198,1767077449240,-500.0,0.00025467,2]
[400085199,1767077449249,-151.0,0.00025467,2]
[400085200,1767077449258,-500.0,0.00025467,2]
[400085201,1767077449267,-151.0,0.00025467,2]
[400085202,1767077449276,-500.0,0.00025467,2]
[400085203,1767077449285,-151.0,0.00025467,2]
[400085204,1767077449295,-500.0,0.00025467,2]
[400085205,1767077449304,-151.0,0.00025467,2]
[400085206,1767077449313,-151.0,0.00025467,2]
[400085207,1767077449401,-500.0,0.00025467,2]
[400085208,1767077449412,-151.0,0.00025467,2]
[400085209,1767077449421,-500.0,0.00025467,2]
[400085210,1767077449431,-151.0,0.00025467,2]
[400085211,1767077449440,-500.0,0.00025467,2]
[400085212,1767077449449,-500.0,0.00025467,2]
[400085213,1767077449458,-151.0,0.00025467,2]
[400085214,1767077449468,-500.0,0.00025467,2]
[400085215,1767077449477,-500.0,0.00025467,2]
[400085216,1767077449486,-151.0,0.00025467,2]
[400085217,1767077449496,-500.0,0.00025467,2]
[400085218,1767077449506,-530.52894229,0.00025467,2]
[400085219,1767077449516,-500.0,0.00025467,2]
[400085220,1767077449524,-496.47127164,0.00025467,2]
[400085221,1767077449534,-260.43714474,0.00025467,2]
[400085222,1767077449543,-183.51906813,0.00025467,2]
[400085223,1767077449552,-200.0,0.00025479,2]
[400085224,1767077449561,-500.0,0.00025479,2]
[400085225,1767077449570,-500.0,0.00025479,2]
[400085226,1767077449580,-500.0,0.00025479,2]
[400085227,1767077449589,-1406.3,0.00025479,2]
[400085228,1767077449599,-1399.86,0.00025479,2]
[400085229,1767077449608,-404.0,0.00025653,2]
[400085230,1767077449618,-350.6822047,0.00025689,14]
[400085231,1767077449627,-311.3580163,0.00025753,2]
[400085232,1767077449636,-500.0,0.00025753,2]
[400085233,1767077449646,-576.92380782,0.00025753,2]
[400085234,1767077449655,-500.0,0.00025753,2]
[400085235,1767077449665,-1406.3,0.00025753,2]
[400085236,1767077449675,-1399.86,0.00025753,2]
[400085237,1767077449684,-161.19,0.000258,7]
[400085238,1767077449693,-167.63,0.000258,7]
[400085239,1767077449703,-700.0,0.00025834,7]
[400085240,1767077449713,-1467.66443132,0.00025884,2]
[400085241,1767077449723,-700.0,0.00026012,7]
[400085242,1767077449732,-2487.15318209,0.00026015,2]
[400085243,1767077449742,-514.84070869,0.00026015,2]
[400085244,1767077449752,-500.0,0.00026027,2]
[400085245,1767077449761,-500.0,0.00026027,2]
[400085246,1767077449771,-1406.3,0.00026027,2]
[400085247,1767077449780,-1399.86,0.00026027,2]
[400085248,1767077449790,-700.0,0.00026161,7]
[400085249,1767077449801,-700.0,0.00026165,7]
[400085250,1767077449810,-500.0,0.00026193,7]
[400085251,1767077449819,-567.81,0.000262,7]
[400085252,1767077449829,-587.86,0.0002628,30]
[400085253,1767077449839,-285.40536442,0.00026301,2]
[400085254,1767077449848,-285.75153938,0.00026301,2]
[400085255,1767077449858,-1406.3,0.00026301,2]
[400085256,1767077449867,-1399.86,0.00026301,2]
[400085257,1767077449878,-150.34,0.000264,2]
[400085258,1767077449887,-8965.3,0.000264,2]
[400085259,1767077449897,-15279.0607231,0.00026436,2]
[400085260,1767077449906,-545.75498472,0.00026562,2]
[400085261,1767077449916,-2579.17784983,0.00026563,2]
[400085262,1767077449926,-533.88981491,0.00026563,2]
[400085263,1767077449936,-500.0,0.00026573,7]
[400085264,1767077449945,-1406.3,0.00026575,2]
[400085265,1767077449955,-1399.86,0.00026575,2]
[400085266,1767077449964,-522.18646957,0.00026722,2]
[400085267,1767077449978,-350.6822047,0.00026811,15]
[400085268,1767077449987,-172.96149317,0.00026829,5]
[400085269,1767077449996,-1406.3,0.00026849,2]
[400085270,1767077450006,-1399.86,0.00026849,2]
[400085271,1767077450017,-2674.60743027,0.00027111,2]
[400085272,1767077450026,-553.64373807,0.00027111,2]
[400085273,1767077450035,-1406.3,0.00027123,2]
[400085274,1767077450045,-1399.86,0.00027123,2]
[400085275,1767077450054,-404.0,0.00027158,2]
[400085276,1767077450063,-500.0,0.00027276,7]
[400085277,1767077450072,-641.83651579,0.00027297,2]
[400085278,1767077450081,-1406.3,0.00027397,2]
[400085279,1767077450090,-1399.86,0.00027397,2]
[400085280,1767077450099,-300.0,0.00027397,2]
[400085281,1767077450109,-300.0,0.00027397,2]
[400085282,1767077450118,-300.0,0.00027397,2]
[400085283,1767077450127,-300.0,0.00027397,2]
[400085284,1767077450137,-300.0,0.00027397,2]
[400085285,1767077450146,-300.0,0.00027397,2]
[400085286,1767077450155,-300.0,0.00027397,2]
[400085287,1767077450164,-300.0,0.00027397,2]
[400085288,1767077450173,-300.0,0.00027397,2]
[400085289,1767077450182,-300.0,0.00027397,2]
[400085290,1767077450191,-300.0,0.00027397,2]
[400085291,1767077450200,-300.0,0.00027397,2]
[400085292,1767077450209,-300.0,0.00027397,2]
[400085293,1767077450218,-300.0,0.00027397,2]
[400085294,1767077450228,-300.0,0.00027397,2]
[400085295,1767077450238,-300.0,0.00027397,2]
[400085296,1767077450247,-300.0,0.00027397,2]
[400085297,1767077450257,-300.0,0.00027397,2]
[400085298,1767077450266,-300.0,0.00027397,2]
[400085299,1767077450275,-300.0,0.00027397,2]
[400085300,1767077450285,-300.0,0.00027397,2]
[400085301,1767077450295,-300.0,0.00027397,2]
[400085302,1767077450304,-300.0,0.00027397,2]
[400085303,1767077450313,-300.0,0.00027397,2]
[400085304,1767077450323,-300.0,0.00027397,2]
[400085305,1767077450332,-300.0,0.00027397,2]
[400085306,1767077450341,-300.0,0.00027397,2]
[400085307,1767077450351,-500.0,0.00027397,5]
[400085308,1767077450361,-783.81,0.00027422,30]
[400085309,1767077450370,-1000.0,0.00027472,30]
[400085310,1767077450379,-1000.0,0.00027472,30]
[400085311,1767077450389,-579.0,0.00027472,30]
[400085312,1767077450399,-700.0,0.00027487,7]
[400085313,1767077450410,-1512.97,0.000275,14]
[400085314,1767077450419,-500.0,0.00027533,7]
[400085315,1767077450428,-700.0,0.00027562,7]
[400085316,1767077450438,-15279.06072301,0.00027656,2]
[400085317,1767077450448,-574.12855637,0.00027659,2]
[400085318,1767077450458,-1406.3,0.00027671,2]
[400085319,1767077450467,-1399.86,0.00027671,2]
[400085320,1767077450478,-700.0,0.00027693,7]
[400085321,1767077450487,-350.6822047,0.00027934,16]
[400085322,1767077450497,-1406.3,0.00027945,2]
[400085323,1767077450507,-1399.86,0.00027945,2]
[400085324,1767077450516,-1000.0,0.00027945,5]
[400085325,1767077450526,-250.0,0.00027945,5]
[400085326,1767077450536,-177.0,0.00028027,27]
[400085327,1767077450546,-567.81,0.000281,7]
[400085328,1767077450556,-500.0,0.00028128,7]
[400085329,1767077450565,-300.0,0.00028137,2]
[400085330,1767077450575,-300.0,0.00028137,2]
[400085331,1767077450584,-300.0,0.00028137,2]
[400085332,1767077450593,-300.0,0.00028137,2]
[400085333,1767077450603,-300.0,0.00028137,2]
[400085334,1767077450612,-641.83651575,0.00028142,2]
[400085335,1767077450622,-8965.3,0.000282,2]
[400085336,1767077450632,-544.88025884,0.00028207,2]
[400085337,1767077450641,-1406.3,0.00028219,2]
[400085338,1767077450651,-1399.94796343,0.00028219,2]
[400085339,1767077450660,-150.34,0.000284,2]
[400085340,1767077450670,-1341.07728692,0.00028493,5]
[400085341,1767077450679,-350.0,0.00028493,5]
[400085342,1767077450688,-589.2221959,0.00028562,2]
[400085343,1767077450698,-979.76,0.00028565,30]
[400085344,1767077450707,-404.0,0.00028663,3]
[400085345,1767077450717,-514.35380261,0.00028677,2]
[400085346,1767077450726,-3685.02353366,0.00028705,2]
[400085347,1767077450737,-700.0,0.00028736,7]
[400085348,1767077450749,-1082.0,0.0002878,2]
[400085349,1767077450758,-3232.08,0.000288,2]
[400085350,1767077450768,-3232.08,0.000288,2]
[400085351,1767077450777,-15279.06072301,0.00028876,2]
[400085352,1767077450787,-3232.08,0.000289,2]
[400085353,1767077450796,-3232.08,0.000289,2]
[400085354,1767077450806,-700.0,0.00028962,7]
[400085355,1767077450816,-641.83651575,0.00028987,2]
[400085356,1767077450826,-151.0,0.00029,16]
[400085357,1767077450835,-206.01879,0.00029,120]
[400085358,1767077450845,-3232.08,0.00029,2]
[400085359,1767077450854,-450.0,0.00029041,5]
[400085360,1767077450863,-350.6822047,0.00029056,18]
[400085361,1767077450873,-700.0,0.00029098,7]
[400085362,1767077450882,-3232.08,0.000291,2]
[400085363,1767077450892,-3232.08,0.000291,2]
[400085364,1767077450901,-151.0,0.000292,20]
[400085365,1767077450911,-3232.08,0.000292,2]
[400085366,1767077450921,-3232.08,0.000292,2]
[400085367,1767077450931,-700.0,0.00029288,7]
[400085368,1767077450940,-1512.97,0.000293,14]
[400085369,1767077450950,-3232.08,0.000293,2]
[400085370,1767077450959,-700.0,0.00029316,7]
[400085371,1767077450971,-700.0,0.00029386,7]
[400085372,1767077450982,-3232.08,0.000294,2]
[400085373,1767077450992,-3232.08,0.000294,2]
[400085374,1767077451001,-567.81,0.000295,7]
[400085375,1767077451011,-8965.3,0.000295,2]
[400085376,1767077451021,-3232.08,0.000295,2]
[400085377,1767077451030,-3232.08,0.000295,2]
[400085378,1767077451039,-500.0,0.00029561,7]
[400085379,1767077451050,-550.0,0.00029589,5]
[400085380,1767077451059,-161.19,0.000296,7]
[400085381,1767077451069,-167.63,0.000296,7]
[400085382,1767077451078,-3232.08,0.000296,2]
[400085383,1767077451088,-3232.08,0.000296,2]
[400085384,1767077451097,-700.0,0.00029623,7]
[400085385,1767077451107,-3232.08,0.000297,2]
[400085386,1767077451121,-1175.71,0.00029707,30]